bitfinex-derivatives/quotes_BTCF0:USTF0_20210109
["timestamp","ask_amount","ask_price","bid_price","bid_amount"]
[1610190089507,0.03055666,40394.0,40366.0,0.08022]
[1610190089508,0.03055666,40394.0,40393.0,0.13632608]
[1610190090107,0.10565666,40394.0,40393.0,0.13632608]
[1610190091109,0.03055666,40394.0,40393.0,0.13632608]
[1610190092710,0.11803,40395.0,40393.0,0.13632608]
[1610190093412,0.0732,40394.0,40393.0,0.13632608]
[1610190094012,0.0732,40394.0,40393.0,4.26202608]
[1610190094313,0.11803,40395.0,40393.0,4.26202608]
[1610190094513,0.06050585,40407.0,40393.0,4.26202608]
[1610190094914,0.09105556,40407.0,40393.0,4.26202608]
[1610190095114,0.09105556,40407.0,40393.0,0.13632608]
[1610190095515,0.00306574,40429.0,40375.0,0.10717]
[1610190095516,0.0739,40414.0,40406.0,0.13632608]
[1610190095713,0.13632608,40420.0,40406.0,0.13632608]
[1610190095915,0.03054565,40413.0,40406.0,0.13632608]
[1610190096114,0.11188322,40413.0,40410.0,3.9893]
[1610190096315,0.08164,40413.0,40410.0,3.9893]
[1610190096515,0.03054534,40412.0,40410.0,3.9893]
[1610190096717,0.0731,40412.0,40410.0,3.9893]
[1610190097515,0.08164,40413.0,40411.0,0.13632608]
[1610190098416,0.0731,40412.0,40411.0,0.13632608]
[1610190098616,0.08164,40413.0,40411.0,0.13632608]
[1610190101120,0.13632608,40420.0,40411.0,0.13632608]
[1610190101520,0.13632608,40420.0,40393.0,0.09028]
[1610190101521,0.13632608,40420.0,40419.0,0.13632608]
[1610190101921,0.21032608,40420.0,40419.0,0.13632608]
[1610190102121,0.240862,40420.0,40419.0,0.13632608]
[1610190102720,0.166862,40420.0,40419.0,0.13632608]
[1610190103122,0.13632608,40420.0,40419.0,0.13632608]
[1610190104120,0.21142608,40420.0,40419.0,0.13632608]
[1610190104321,0.13632608,40420.0,40419.0,0.13632608]
[1610190105321,0.21072608,40420.0,40419.0,0.13632608]
[1610190106421,0.13632608,40420.0,40419.0,0.13632608]
[1610190107424,0.21132608,40420.0,40419.0,0.13632608]
[1610190108024,0.13632608,40420.0,40419.0,0.13632608]
[1610190108224,0.13632608,40420.0,40411.0,3.9669]
[1610190108428,0.16685902,40420.0,40411.0,3.9669]
[1610190108625,0.03053444,40419.0,40393.0,0.09028]
[1610190108826,0.03053444,40419.0,40390.0,3.0141]
[1610190109026,0.0738,40418.0,40384.0,0.08675]
[1610190109227,0.03053444,40419.0,40344.0,1.5]
[1610190109428,0.03053444,40419.0,40396.0,3.1195]
[1610190109628,0.03053444,40419.0,40418.0,0.13632608]
[1610190109827,0.13632608,40420.0,40418.0,0.13632608]
[1610190110429,0.0731,40419.0,40418.0,0.13632608]
[1610190111728,0.13632608,40420.0,40418.0,0.13632608]
[1610190113031,0.09224,40423.0,40418.0,0.13632608]
[1610190113233,0.15115365,40434.0,40418.0,0.13632608]
[1610190113635,0.18168613,40434.0,40433.0,0.13632608]
[1610190114032,0.25668613,40434.0,40433.0,0.13632608]
[1610190114232,0.075,40434.0,40433.0,0.13632608]
[1610190114433,0.03053274,40434.0,40433.0,0.13632608]
[1610190115035,0.18168764,40444.0,40433.0,0.13632608]
[1610190115236,0.03053329,40434.0,40433.0,0.13632608]
[1610190115435,0.12373329,40434.0,40433.0,0.13632608]
[1610190115635,0.30282608,40434.0,40433.0,0.13632608]
[1610190115836,0.19703138,40434.0,40433.0,0.13632608]
[1610190116037,0.12373138,40434.0,40433.0,3.84342608]
[1610190116636,0.0932,40434.0,40433.0,3.84342608]
[1610190116836,0.0932,40434.0,40433.0,0.13632608]
[1610190117037,0.0932,40434.0,40433.0,2.95692608]
[1610190118040,0.1681,40434.0,40433.0,2.95692608]
[1610190118436,0.0932,40434.0,40433.0,2.95692608]
[1610190118637,0.24986845,40434.0,40433.0,2.95692608]
[1610190146268,0.24986845,40434.0,40433.0,0.13632608]
[1610190148070,0.24986845,40434.0,40433.0,3.80782608]
[1610190148269,0.24986845,40434.0,40433.0,3.80805374]
[1610190148670,0.24986845,40434.0,40433.0,3.80782608]
[1610190148870,0.24986845,40434.0,40433.0,3.80805373]
[1610190154274,0.24986845,40434.0,40433.0,3.82220628]
[1610190155576,0.24986845,40434.0,40433.0,0.15070628]
[1610190155976,0.24986845,40434.0,40433.0,0.13655373]
[1610190156478,0.24986845,40434.0,40433.0,0.15070619]
[1610190159583,0.24986845,40434.0,40433.0,0.01438011]
[1610190160384,0.38619453,40434.0,40433.0,0.00022765]
[1610190160984,0.24986845,40434.0,40432.0,0.00022769]
[1610190161184,0.24986845,40434.0,40433.0,0.00022769]
[1610190161783,0.24986845,40434.0,40432.0,0.00022769]
[1610190161983,0.24986845,40434.0,40431.0,0.13632608]
[1610190161984,0.24986845,40434.0,40433.0,0.00022769]
[1610190162384,0.38619453,40434.0,40433.0,0.00022769]
[1610190162586,0.38619453,40434.0,40432.0,0.00022769]
[1610190162786,0.50422453,40434.0,40433.0,0.00022769]
[1610190162985,3.82312453,40434.0,40433.0,0.00022769]
[1610190163383,0.50422453,40434.0,40412.0,0.01438762]
[1610190163584,0.50422453,40434.0,40433.0,0.00022772]
[1610190163985,4.11612453,40434.0,40413.0,0.00022774]
[1610190164187,0.50422453,40434.0,40401.0,0.1556]
[1610190164390,3.9122,40419.0,40414.0,0.00022776]
[1610190164788,3.9122,40419.0,40403.0,0.13632608]
[1610190164989,3.9122,40419.0,40415.0,0.00022776]
[1610190165190,3.9122,40419.0,40404.0,0.00022779]
[1610190165388,3.9122,40419.0,40416.0,0.00022779]
[1610190165789,3.9122,40419.0,40405.0,0.00022782]
[1610190165988,3.9122,40419.0,40417.0,0.00022782]
[1610190166188,3.9122,40419.0,40406.0,0.00022782]
[1610190166488,3.9122,40419.0,40418.0,0.00022782]
[1610190166889,3.9122,40419.0,40388.0,3.0632]
[1610190167291,0.09467,40425.0,40392.0,0.00023001]
[1610190167492,4.0796,40419.0,40392.0,0.00023001]
[1610190167693,4.0796,40419.0,40385.0,0.10841]
[1610190167895,4.0796,40419.0,40393.0,0.00023001]
[1610190168094,4.0796,40419.0,40390.0,0.00023001]
[1610190168294,4.0796,40419.0,40391.0,0.1556]
[1610190168493,4.0796,40419.0,40415.0,0.13632608]
[1610190168693,0.09467,40425.0,40415.0,0.13632608]
[1610190169897,0.2955,40433.0,40415.0,0.13632608]
[1610190170696,0.13632608,40426.0,40425.0,0.13632608]
[1610190172600,0.13632608,40426.0,40410.0,0.1556]
[1610190174601,0.13632608,40411.0,40409.0,3.5119]
[1610190174802,0.25350608,40411.0,40408.0,0.13632608]
[1610190181215,0.11718,40411.0,40408.0,0.13632608]
[1610190181416,4.3142,40433.0,40408.0,0.13632608]
[1610190182317,0.2955,40433.0,40408.0,0.13632608]
[1610190182716,0.2955,40433.0,40415.0,0.13632608]
[1610190184717,0.13632608,40416.0,40415.0,0.13632608]
[1610190184917,0.09917,40417.0,40415.0,0.13632608]
[1610190186318,0.09917,40417.0,40416.0,0.00022819]
[1610190186518,0.36789845,40434.0,40416.0,0.43162819]
[1610190186719,0.36789845,40434.0,40433.0,0.13632608]
[1610190187519,0.36789845,40434.0,40424.0,3.5613]
[1610190188118,0.36789845,40434.0,40416.0,0.1556]
[1610190188321,0.36789845,40434.0,40417.0,3.9662]
[1610190188518,0.36789845,40434.0,40417.0,3.96642993]
[1610190188720,0.36789845,40434.0,40416.0,0.1556]
[1610190188721,0.36789845,40434.0,40429.0,0.13632608]
[1610190190720,0.13632608,40432.0,40429.0,0.13632608]
[1610190191320,0.13632608,40432.0,40416.0,0.1556]
[1610190191520,0.13632608,40432.0,40417.0,0.00022993]
[1610190192120,0.13632608,40432.0,40413.0,0.00022995]
[1610190192320,0.13632608,40432.0,40418.0,0.00022997]
[1610190192720,0.13632608,40419.0,40415.0,0.13632608]
[1610190193120,0.13632608,40419.0,40416.0,0.00022997]
[1610190197922,0.13632608,40419.0,40417.0,0.00022827]
[1610190198123,0.13632608,40419.0,40416.0,0.00022827]
[1610190198524,0.13632608,40419.0,40418.0,0.00022827]
[1610190198726,0.13632608,40419.0,40417.0,0.00022827]
[1610190198923,0.13632608,40419.0,40416.0,0.00022827]
[1610190199324,0.13632608,40419.0,40415.0,0.13632608]
[1610190199524,0.13632608,40419.0,40403.0,4.0635]
[1610190200124,0.13632608,40419.0,40404.0,0.00022829]
[1610190200726,0.13632608,40408.0,40407.0,0.13632608]
[1610190201125,0.13632608,40408.0,40407.0,0.13655437]
[1610190205733,0.13632608,40408.0,40407.0,0.00022829]
[1610190206335,0.13632608,40408.0,40404.0,0.00022829]
[1610190206736,0.13632608,40408.0,40407.0,0.00022829]
[1610190206936,0.13632608,40408.0,40404.0,0.13632608]
[1610190206937,0.13632608,40408.0,40404.0,0.13655437]
[1610190207137,0.13632608,40408.0,40407.0,0.00022829]
[1610190207337,0.13632608,40408.0,40405.0,0.00022829]
[1610190207636,0.13632608,40408.0,40407.0,0.00022829]
[1610190207938,0.13632608,40408.0,40406.0,0.00022829]
[1610190208139,0.13632608,40408.0,40407.0,0.00022829]
[1610190208837,0.13632608,40408.0,40405.0,0.01446373]
[1610190209039,0.13632608,40408.0,40407.0,0.00022829]
[1610190209238,0.13632608,40408.0,40406.0,0.00022829]
[1610190209638,0.13632608,40408.0,40407.0,0.00022831]
[1610190210041,0.13632608,40408.0,40405.0,0.00022831]
[1610190210441,0.09183,40413.0,40407.0,0.00022829]
[1610190210640,0.09183,40413.0,40405.0,0.01446337]
[1610190210840,0.09183,40413.0,40412.0,0.13632608]
[1610190211441,0.13632608,40415.0,40412.0,0.13632608]
[1610190211442,0.13632608,40415.0,40412.0,0.13655437]
[1610190212041,0.13632608,40415.0,40413.0,0.00022829]
[1610190212242,4.19912608,40415.0,40413.0,0.00022829]
[1610190212642,4.19912608,40415.0,40399.0,0.00022829]
[1610190212842,4.0628,40415.0,40399.0,0.0144631]
[1610190213042,4.0628,40415.0,40414.0,0.00022829]
[1610190213244,4.0628,40415.0,40407.0,0.00022829]
[1610190213444,4.0628,40415.0,40414.0,0.00022829]
[1610190213843,4.0628,40415.0,40399.0,0.00022831]
[1610190214044,4.0628,40415.0,40414.0,0.00022833]
[1610190214244,4.0628,40415.0,40400.0,0.00022833]
[1610190214643,4.0628,40415.0,40393.0,0.01423847]
[1610190214844,4.0628,40415.0,40401.0,0.00022834]
[1610190215043,4.0628,40415.0,40397.0,0.00022834]
[1610190215444,4.0628,40415.0,40402.0,0.00022834]
[1610190215644,4.0628,40415.0,40398.0,0.00022834]
[1610190215846,4.0628,40415.0,40397.0,0.00022834]
[1610190216246,4.0628,40415.0,40399.0,0.00022834]
[1610190216447,4.0628,40415.0,40398.0,0.00022834]
[1610190216646,4.0628,40415.0,40400.0,0.00022836]
[1610190216849,0.13632608,40401.0,40400.0,0.00022836]
[1610190217047,0.13632608,40401.0,40399.0,0.00022838]
[1610190217248,0.22442608,40401.0,40399.0,0.00022838]
[1610190218849,0.22442608,40401.0,40399.0,0.13655446]
[1610190219649,0.0881,40401.0,40399.0,0.13655446]
[1610190219851,0.07588,40410.0,40399.0,0.13655446]
[1610190220852,0.07588,40410.0,40405.0,0.13632608]
[1610190221453,0.07588,40410.0,40406.0,0.00022833]
[1610190222854,0.13632608,40407.0,40401.0,0.13632608]
[1610190223254,0.13632608,40407.0,40402.0,0.00022834]
[1610190227759,0.13632608,40407.0,40386.0,0.01445171]
[1610190227961,0.13632608,40407.0,40403.0,0.00022829]
[1610190228261,0.13632608,40407.0,40387.0,0.00022829]
[1610190228662,0.13632608,40407.0,40386.0,0.01422342]
[1610190228663,0.13632608,40407.0,40404.0,0.00022829]
[1610190228865,0.13632608,40407.0,40395.0,0.13632608]
[1610190229063,0.13632608,40407.0,40405.0,0.00022829]
[1610190229265,0.13632608,40407.0,40396.0,0.00022829]
[1610190229564,0.13632608,40407.0,40395.0,0.13632608]
[1610190229765,0.13632608,40407.0,40385.0,3.2073]
[1610190229965,0.13632608,40407.0,40397.0,0.00022829]
[1610190230164,3.6519,40406.0,40385.0,0.01445252]
[1610190230365,3.6519,40406.0,40398.0,0.00022829]
[1610190230666,3.6519,40406.0,40386.0,0.00022829]
[1610190230865,3.6519,40406.0,40399.0,0.00022829]
[1610190231266,3.6519,40406.0,40389.0,0.13632608]
[1610190231466,3.6519,40406.0,40400.0,0.00022829]
[1610190231666,3.6519,40406.0,40390.0,0.00022829]
[1610190232066,3.6519,40406.0,40401.0,0.00022829]
[1610190232268,3.6519,40406.0,40389.0,0.13632608]
[1610190232269,3.6519,40406.0,40391.0,0.00022829]
[1610190232467,3.6519,40406.0,40402.0,0.00022829]
[1610190232867,3.6519,40406.0,40392.0,0.00022831]
[1610190233066,0.13632608,40403.0,40389.0,0.13632608]
[1610190233268,0.13632608,40403.0,40393.0,0.00022831]
[1610190233669,0.13632608,40403.0,40390.0,0.00022831]
[1610190233869,0.13632608,40403.0,40394.0,0.00022831]
[1610190234069,0.13632608,40403.0,40391.0,0.00022831]
[1610190234269,0.13632608,40403.0,40395.0,0.00022831]
[1610190234569,0.13632608,40403.0,40389.0,0.13632608]
[1610190234570,0.13632608,40403.0,40390.0,0.00022831]
[1610190234970,3.6519,40406.0,40396.0,0.00022831]
[1610190235169,3.6519,40406.0,40391.0,0.00022831]
[1610190235369,3.6519,40406.0,40397.0,0.00022831]
[1610190235769,3.6519,40406.0,40389.0,0.13632608]
[1610190235770,3.6519,40406.0,40392.0,0.00022831]
[1610190235970,3.6519,40406.0,40398.0,0.00022831]
[1610190236169,3.6519,40406.0,40393.0,0.00022831]
[1610190236569,3.6519,40406.0,40399.0,0.00022831]
[1610190236771,3.6519,40406.0,40390.0,0.00022831]
[1610190236969,0.13632608,40391.0,40389.0,0.13632608]
[1610190237571,0.13632608,40391.0,40390.0,0.00022831]
[1610190238271,0.11998,40396.0,40390.0,0.00022831]
[1610190238972,0.11998,40396.0,40395.0,0.13632608]
[1610190239372,0.11998,40396.0,40395.0,0.13655439]
[1610190240875,0.11998,40396.0,40395.0,0.15077743]
[1610190241975,0.11998,40396.0,40395.0,0.1507774]
[1610190242176,0.11998,40396.0,40395.0,0.15054912]
[1610190242382,0.11998,40396.0,40395.0,0.1507774]
[1610190242577,0.13632608,40398.0,40395.0,0.1507774]
[1610190242976,0.13632608,40398.0,40396.0,0.00022828]
[1610190243576,0.13632608,40398.0,40396.0,0.01445172]
[1610190245079,0.13632608,40404.0,40396.0,0.01445172]
[1610190247080,0.13632608,40404.0,40403.0,0.13632608]
[1610190247483,0.13632608,40404.0,40403.0,0.13655434]
[1610190247681,0.13632608,40404.0,40403.0,2.90515434]
[1610190248082,0.13632608,40404.0,40403.0,2.91937402]
[1610190248683,0.13632608,40404.0,40403.0,2.90515434]
[1610190249282,0.07588,40410.0,40403.0,2.90515434]
[1610190249484,0.2951,40422.0,40403.0,2.91870097]
[1610190249684,4.1111,40432.0,40403.0,2.91870097]
[1610190249886,4.1111,40432.0,40404.0,0.01377241]
[1610190251085,4.1111,40432.0,40418.0,0.13632608]
[1610190251485,4.1111,40432.0,40419.0,0.00022633]
[1610190252184,0.2919,40433.0,40419.0,0.00022633]
[1610190252384,0.2919,40433.0,40418.0,0.13632608]
[1610190252986,0.13632608,40419.0,40418.0,0.13632608]
[1610190253589,0.13632608,40419.0,40418.0,0.13655239]
[1610190255391,0.2919,40433.0,40418.0,0.13655239]
[1610190255789,0.36789845,40434.0,40431.0,3.7042]
[1610190256995,0.36789845,40434.0,40433.0,0.13632608]
[1610190257794,0.24986845,40434.0,40433.0,0.13632608]
[1610190261098,0.24986845,40434.0,40433.0,3.24022608]
[1610190270713,0.24986845,40434.0,40433.0,3.2404522]
[1610190270911,0.24986845,40434.0,40433.0,3.24022608]
[1610190276318,0.24986845,40434.0,40433.0,0.13632608]
[1610190276919,0.24986845,40434.0,40433.0,0.67202608]
[1610190280221,0.24986845,40434.0,40433.0,0.67225217]
[1610190280423,0.24986845,40434.0,40433.0,0.67202608]
[1610190280822,0.24986845,40434.0,40433.0,0.67225217]
[1610190289737,0.24986845,40434.0,40433.0,0.13632608]
[1610190290338,0.24986845,40434.0,40433.0,0.13655021]
[1610190291343,0.24986845,40434.0,40433.0,4.27655021]
[1610190293041,0.24986845,40434.0,40433.0,0.13655021]
[1610190297446,0.24986845,40434.0,40433.0,0.00022413]
[1610190297947,0.24986845,40434.0,40429.0,3.8918]
[1610190297948,0.24986845,40434.0,40430.0,0.00022411]
[1610190298146,0.24986845,40434.0,40429.0,3.8918]
[1610190298147,0.24986845,40434.0,40433.0,0.00022411]
[1610190298346,0.24986845,40434.0,40431.0,0.00022413]
[1610190298747,0.24986845,40434.0,40433.0,0.00022413]
[1610190298946,0.24986845,40434.0,40432.0,0.00022413]
[1610190299148,0.24986845,40434.0,40433.0,0.13655021]
[1610190300750,0.24986845,40434.0,40433.0,0.14950754]
[1610190305360,3.90316845,40434.0,40433.0,0.01318146]
[1610190305560,3.90316845,40434.0,40433.0,0.00022413]
[1610190305959,3.90316845,40434.0,40420.0,0.00022417]
[1610190306360,3.90316845,40434.0,40433.0,0.0002242]
[1610190306560,3.90316845,40434.0,40421.0,0.0002242]
[1610190306765,3.90316845,40434.0,40398.0,0.1556]
[1610190306766,0.24986845,40434.0,40398.0,0.1556]
[1610190307162,3.5376,40427.0,40422.0,0.00022422]
[1610190307362,0.09177,40427.0,40399.0,0.013196]
[1610190307563,2.8487,40423.0,40399.0,0.01297178]
[1610190307965,2.8487,40423.0,40394.0,3.9334]
[1610190307966,2.8487,40423.0,40400.0,0.00022425]
[1610190308164,2.8487,40423.0,40400.0,0.00022426]
[1610190308364,2.8487,40423.0,40395.0,0.01319955]
[1610190308568,2.8487,40423.0,40401.0,0.00022434]
[1610190308866,2.8487,40423.0,40396.0,0.00022434]
[1610190309268,2.8487,40423.0,40404.0,0.13632608]
[1610190309670,2.8487,40423.0,40405.0,0.00022434]
[1610190310271,2.84846907,40423.0,40405.0,0.00022434]
[1610190310471,2.84846907,40423.0,40404.0,0.13632608]
[1610190311272,2.84846907,40423.0,40414.0,0.13632608]
[1610190311672,0.09177,40427.0,40414.0,0.13632608]
[1610190312272,4.23536845,40434.0,40414.0,0.13632608]
[1610190313274,0.13632608,40415.0,40414.0,0.13632608]
[1610190314273,0.13632608,40415.0,40401.0,3.4447]
[1610190314475,0.13632608,40415.0,40396.0,0.08211]
[1610190314674,0.13632608,40415.0,40402.0,0.00022435]
[1610190314975,0.13632608,40415.0,40397.0,0.00022435]
[1610190315373,4.0328,40417.0,40410.0,0.13632608]
[1610190316374,0.08145,40420.0,40410.0,0.13632608]
[1610190316574,0.08145,40420.0,40399.0,2.8322]
[1610190317273,0.08145,40420.0,40414.0,0.13632608]
[1610190318774,3.133,40429.0,40414.0,0.13632608]
[1610190319175,0.24986845,40434.0,40414.0,0.13632608]
[1610190319375,0.13632608,40415.0,40414.0,0.13632608]
[1610190319577,0.25641608,40415.0,40414.0,0.13632608]
[1610190321475,0.25641608,40415.0,40396.0,0.08211]
[1610190321675,0.25641608,40415.0,40395.0,0.1556]
[1610190323383,0.12009,40415.0,40408.0,0.13632608]
[1610190324580,3.7037,40425.0,40408.0,0.13632608]
[1610190325381,0.13632608,40409.0,40408.0,0.13632608]
[1610190325780,0.09413,40420.0,40408.0,0.13632608]
[1610190327283,0.09413,40420.0,40419.0,0.13632608]
[1610190330586,0.13632608,40424.0,40419.0,0.13632608]
[1610190331188,0.24986845,40434.0,40408.0,3.8628]
[1610190331488,0.24986845,40434.0,40409.0,0.00022265]
[1610190331688,0.13632608,40412.0,40411.0,0.13632608]
[1610190332089,0.13632608,40412.0,40411.0,0.13654873]
[1610190332289,0.13632608,40412.0,40411.0,0.00022265]
[1610190332689,0.13632608,40412.0,40407.0,0.00022265]
[1610190332890,0.13632608,40412.0,40411.0,0.00022265]
[1610190333090,0.13632608,40412.0,40408.0,0.00022265]
[1610190333290,0.13632608,40412.0,40411.0,0.00022265]
[1610190333590,0.13632608,40412.0,40407.0,0.00022265]
[1610190333989,0.13632608,40412.0,40406.0,0.1556]
[1610190334190,0.13632608,40412.0,40407.0,0.00022266]
[1610190336292,0.13632608,40412.0,40403.0,0.00022268]
[1610190337493,0.13632608,40412.0,40403.0,0.01264741]
[1610190337693,0.11805,40420.0,40407.0,0.13632608]
[1610190337993,3.2859,40422.0,40407.0,0.13632608]
[1610190338192,7.4188,40430.0,40408.0,0.00022268]
[1610190338392,1.5,40430.0,40408.0,0.00022268]
[1610190338592,0.03052034,40429.0,40408.0,0.00022268]
[1610190338792,3.3001,40409.0,40408.0,0.00022268]
[1610190338992,3.3001,40409.0,40397.0,0.00022274]
[1610190339194,1.5,40409.0,40373.0,2.52334841]
[1610190339393,3.9512,40388.0,40359.0,3.9217]
[1610190339595,0.13632608,40360.0,40352.0,0.13632608]
[1610190339993,3.7667,40354.0,40353.0,0.01266831]
[1610190341597,3.90302608,40354.0,40353.0,0.01266831]
[1610190342799,3.90302608,40354.0,40339.0,0.1556]
[1610190343298,3.90302608,40354.0,40340.0,0.00022154]
[1610190343497,3.90302608,40354.0,40340.0,0.07333154]
[1610190343697,3.7667,40354.0,40346.0,0.13632608]
[1610190344299,0.2776,40373.0,40346.0,0.13632608]
[1610190344500,3.8432,40347.0,40346.0,0.13632608]
[1610190344701,3.8432,40347.0,40340.0,0.07311]
[1610190345501,0.2731,40372.0,40340.0,0.07311]
[1610190345701,4.01392608,40341.0,40340.0,0.07311]
[1610190348506,4.01392608,40341.0,40319.0,0.13632608]
[1610190348707,0.13632608,40341.0,40319.0,0.13632608]
[1610190348907,3.4218,40320.0,40293.0,2.51867928]
[1610190349105,0.13632608,40341.0,40293.0,2.51867928]
[1610190349307,0.13632608,40341.0,40293.0,0.09249]
[1610190349708,4.15902608,40308.0,40293.0,0.09249]
[1610190349910,4.0707,40297.0,40293.0,0.09249]
[1610190350710,3.61681216,40297.0,40293.0,0.09249]
[1610190351711,3.61681216,40297.0,40296.0,0.13632608]
[1610190352711,0.2954,40355.0,40296.0,0.13632608]
[1610190352914,3.4431,40351.0,40301.0,3.1161]
[1610190353713,0.2962,40354.0,40339.0,0.13632608]
[1610190353913,0.2962,40354.0,40339.0,0.09918]
[1610190355716,0.13632608,40340.0,40339.0,0.09918]
[1610190359015,0.13632608,40340.0,40320.0,2.9008]
[1610190359619,0.13632608,40332.0,40331.0,0.13632608]
[1610190360617,0.13632608,40332.0,40320.0,2.9008]
[1610190360821,0.13632608,40332.0,40294.0,0.1556]
[1610190361221,0.13632608,40332.0,40296.0,3.693]
[1610190361622,0.13632608,40319.0,40318.0,0.13632608]
[1610190361822,3.5271,40338.0,40318.0,0.13632608]
[1610190363024,3.5271,40338.0,40318.0,0.23330608]
[1610190363625,0.13632608,40327.0,40326.0,0.13632608]
[1610190364226,0.64902608,40327.0,40326.0,0.13632608]
[1610190365026,0.64902608,40327.0,40318.0,0.09698]
[1610190365427,0.13632608,40327.0,40318.0,0.09698]
[1610190365626,3.12102608,40319.0,40318.0,0.09698]
[1610190368126,3.12102608,40319.0,40297.0,0.13632608]
[1610190368728,3.12102608,40319.0,40276.0,3.3079]
[1610190369127,0.13632608,40319.0,40261.0,0.1556]
[1610190369527,3.7638,40312.0,40263.0,3.7498]
[1610190370431,3.7638,40312.0,40294.0,0.13632608]
[1610190371431,3.7638,40312.0,40263.0,3.7498]
[1610190371632,0.2926,40338.0,40294.0,0.10013]
[1610190371832,3.4453,40302.0,40294.0,0.10013]
[1610190372032,0.03058881,40337.0,40294.0,0.10013]
[1610190372232,3.3743,40296.0,40294.0,0.10013]
[1610190372433,0.08755,40336.0,40294.0,0.10013]
[1610190372633,3.8147,40295.0,40294.0,0.10013]
[1610190373838,3.95102608,40295.0,40294.0,0.10013]
[1610190376140,0.13632608,40295.0,40250.0,0.13632608]
[1610190376341,3.4113,40257.0,40230.0,0.1556]
[1610190376540,0.13632608,40295.0,40230.0,0.1556]
[1610190376740,0.2769,40294.0,40230.0,0.09176]
[1610190376941,4.0113,40263.0,40231.0,0.1556]
[1610190377342,0.2742,40277.0,40231.0,0.1556]
[1610190377545,3.7418,40252.0,40231.0,0.1556]
[1610190377742,3.7418,40252.0,40251.0,0.13632608]
[1610190377942,3.7418,40252.0,40251.0,0.22853608]
[1610190378143,3.43879885,40252.0,40251.0,0.22853608]
[1610190378743,0.13632608,40253.0,40251.0,0.22853608]
[1610190378945,0.2769,40294.0,40252.0,2.7937]
[1610190379143,0.2769,40294.0,40253.0,0.1556]
[1610190379743,0.2769,40294.0,40283.0,0.13632608]
[1610190379944,0.2769,40294.0,40283.0,0.07454]
[1610190380945,0.2919,40307.0,40283.0,0.07454]
[1610190381745,0.2919,40307.0,40292.0,0.13632608]
[1610190381947,0.2919,40307.0,40292.0,0.25334608]
[1610190383447,0.2919,40307.0,40292.0,0.11702]
[1610190383849,0.13632608,40293.0,40292.0,0.11702]
[1610190384649,0.69802608,40293.0,40292.0,0.11702]
[1610190387255,0.13632608,40293.0,40283.0,0.07454]
[1610190387455,0.13632608,40293.0,40252.0,0.1556]
[1610190387656,3.3949,40287.0,40252.0,0.1556]
[1610190387857,0.06060405,40306.0,40259.0,0.13632608]
[1610190388058,3.6556,40307.0,40259.0,0.13632608]
[1610190388456,0.18211839,40306.0,40259.0,0.13632608]
[1610190389459,3.6556,40307.0,40259.0,0.13632608]
[1610190389858,3.6556,40307.0,40268.0,0.13632608]
[1610190390059,3.6556,40307.0,40268.0,0.25634608]
[1610190390860,3.6556,40307.0,40268.0,0.12002]
[1610190391561,0.18213205,40306.0,40268.0,0.12002]
[1610190391861,0.13632608,40269.0,40268.0,0.12002]
[1610190392463,4.23892608,40269.0,40268.0,0.12002]
[1610190393664,0.13632608,40269.0,40268.0,0.12002]
[1610190395067,0.13632608,40269.0,40251.0,0.09221]
[1610190395267,0.13632608,40269.0,40241.0,4.1179]
[1610190395870,0.13632608,40242.0,40241.0,4.1179]
[1610190396069,0.13632608,40242.0,40240.0,0.13632608]
[1610190396470,0.08465,40299.0,40240.0,0.13632608]
[1610190396671,0.08465,40299.0,40240.0,0.24650608]
[1610190396869,0.0306144,40298.0,40240.0,0.24650608]
[1610190397070,2.9765,40271.0,40240.0,0.24650608]
[1610190397969,2.9765,40271.0,40246.0,0.13632608]
[1610190398769,2.9765,40271.0,40247.0,0.1556]
[1610190399974,2.9765,40271.0,40262.0,0.13632608]
[1610190400172,2.9765,40271.0,40262.0,0.22091608]
[1610190400773,2.9765,40271.0,40262.0,0.08459]
[1610190401974,0.13632608,40263.0,40262.0,0.08459]
[1610190403275,0.54042608,40263.0,40262.0,0.08459]
[1610190405377,0.54042608,40263.0,40253.0,0.13632608]
[1610190405978,0.13632608,40254.0,40253.0,0.13632608]
[1610190406178,3.93162608,40254.0,40240.0,0.11018]
[1610190406379,3.93162608,40254.0,40231.0,0.1556]
[1610190407982,3.7953,40254.0,40246.0,0.13632608]
[1610190408181,3.7953,40254.0,40246.0,0.23367608]
[1610190408381,0.38332079,40269.0,40246.0,0.23367608]
[1610190408982,0.38332079,40269.0,40247.0,0.1556]
[1610190409885,0.38332079,40269.0,40255.0,0.13632608]
[1610190410086,3.8618,40258.0,40255.0,0.23782608]
[1610190411385,3.8618,40258.0,40255.0,0.1015]
[1610190411885,0.13632608,40256.0,40255.0,0.1015]
[1610190414092,3.41472608,40256.0,40255.0,0.1015]
[1610190415292,3.41472608,40256.0,40246.0,0.09735]
[1610190415693,3.41472608,40256.0,40217.0,0.1556]
[1610190416095,0.13632608,40231.0,40230.0,0.13632608]
[1610190416295,0.38332079,40269.0,40230.0,0.13632608]
[1610190416495,0.38332079,40269.0,40231.0,0.1556]
[1610190416896,0.38332079,40269.0,40232.0,0.00021637]
[1610190417997,0.38332079,40269.0,40253.0,0.13632608]
[1610190418197,0.38332079,40269.0,40253.0,0.24642608]
[1610190419699,0.38332079,40269.0,40254.0,0.0002163]
[1610190420100,0.38332079,40269.0,40268.0,0.13632608]
[1610190420301,0.38332079,40269.0,40268.0,0.21783608]
[1610190420502,0.38332079,40269.0,40268.0,0.08172628]
[1610190420701,3.27832079,40269.0,40268.0,0.08172628]
[1610190421100,3.27832079,40269.0,40268.0,0.0817263]
[1610190422101,3.41464687,40269.0,40268.0,0.0817263]
[1610190433014,3.41464687,40269.0,40268.0,0.08151]
[1610190433213,3.41464687,40269.0,40268.0,0.00021625]
[1610190433414,3.41464687,40269.0,40268.0,0.07537625]
[1610190433615,3.41464687,40269.0,40268.0,0.07516]
[1610190433814,3.41464687,40269.0,40268.0,0.07537623]
[1610190435215,3.41464687,40269.0,40268.0,0.07516]
[1610190436916,3.41464687,40269.0,40253.0,0.1101]
[1610190437117,0.51964687,40269.0,40219.0,2.40413069]
[1610190437318,2.8252,40245.0,40219.0,2.40413069]
[1610190437520,2.8252,40245.0,40231.0,0.01074612]
[1610190437720,2.8252,40245.0,40220.0,0.01074689]
[1610190437922,2.8252,40245.0,40231.0,0.08839]
[1610190438120,2.8252,40245.0,40232.0,0.00021632]
[1610190438520,2.8252,40245.0,40232.0,0.01074702]
[1610190439221,2.8252,40245.0,40232.0,0.00021632]
[1610190439421,2.8252,40245.0,40233.0,0.00021637]
[1610190439620,0.94772079,40269.0,40233.0,0.00021637]